Cogmind - Beta 16 @@@ ROGUE MODE // 2025.12.26 @ 12:46:13 Player: mirus Result: Destroyed by NO-ZD4(R) with Subdweller Beam Cannon Performance ------------- Evolutions (0) 0 Regions Visited (3) 600 Robots Destroyed (6) 30 Value Destroyed (45) 45 Prototype IDs (0) 0 Alien Tech Used (0) 0 Bonus (0) 0 TOTAL SCORE: 675 Bonus ------- None Cogmind --------- Core Integrity 0/250 Matter 300/300 Energy 100/100 System Corruption 0% Temperature Cool (9) Movement Core (200) Ox3 Location -10/Subcaves Parts ------- > --- POWER (1) -------- (None) > --- PROPULSION (2) --- (None) > --- UTILITY (2) ------ Medium Storage Unit > --- WEAPON (2) ------- (None) > --- INVENTORY (10) --- Wheel High-capacity Battery (250) Medium Matter Pod (23) Weight Redist. System Signal Interpreter Seismic Detector Medium Armor Plating Beam Cannon Assault Rifle Peak State ------------ > --- POWER ------------ Light Ion Engine > --- PROPULSION ------- Aluminum Leg Aluminum Leg > --- UTILITY ---------- Small Storage Unit Improved Terrain Scanner > --- WEAPON ----------- Assault Rifle Light Assault Rifle > --- INVENTORY -------- Light Ion Engine Wheel Wheel Assault Rifle [Rating: 9] Favorites ----------- Power Light Ion Engine Engine Light Ion Engine Propulsion Aluminum Leg Leg Aluminum Leg Utility Medium Storage Unit Device Sensor Array Storage Medium Storage Unit Weapon Assault Rifle Energy Cannon Beam Cannon Ballistic Gun Assault Rifle Special Weapon Mining Laser Build | -11 -10 -10 -10 ------- Run | Yrd Mat Min Sub Slots Evolved . | . . . . Power . | . . . . Propulsion . | . . . . Utility . | . . . . Weapon . | . . . . Parts Attached 14 | 8 5 . 1 Power 2 | 1 . . 1 Engine 2 | 1 . . 1 Core . | . . . . Reactor . | . . . . Propulsion 2 | 2 . . . Treads . | . . . . Leg 2 | 2 . . . Wheel . | . . . . Hover . | . . . . Flight . | . . . . Utility 6 | 3 3 . . Device 3 | 2 1 . . Storage 3 | 1 2 . . Processor . | . . . . Hackware . | . . . . Protection . | . . . . Artifact . | . . . . Weapon 4 | 2 2 . . Energy Gun . | . . . . Energy Cannon 1 | . 1 . . Ballistic Gun 2 | 2 . . . Ballistic Cannon . | . . . . Launcher . | . . . . Special Weapon 1 | . 1 . . Impact Weapon . | . . . . Slashing Weapon . | . . . . Piercing Weapon . | . . . . Special Melee Weapon . | . . . . Unidentified Prototypes . | . . . . Parts Lost 7 | . . . 7 Power 2 | . . . 2 Propulsion 2 | . . . 2 Utility 1 | . . . 1 Weapon 2 | . . . 2 Highest Loss Streak 6 | . . . 6 To Critical Strikes . | . . . . Average Backups 7 | 4 8 10 9 Power . | . 1 1 . Propulsion 1 | 1 1 1 1 Utility 4 | . 4 6 6 Weapon 1 | . 2 2 2 Tool/Special . | . . . . Unused Backups 8 | . 1 . 7 Power . | . . . . Propulsion 2 | . 1 . 1 Utility 5 | . . . 5 Weapon 1 | . . . 1 Tool/Special . | . . . . Average Slot Usage (%) 96 | . 100 100 93 Engine 12 | . 14 14 11 Leg 27 | . 28 28 26 Device 13 | . 14 14 13 Storage 14 | . 14 14 14 Energy Cannon 2 | . 6 . . Ballistic Gun 14 | . 15 14 12 Special Weapon 10 | . 5 14 13 Peak Build Rating 9 | 9 8 8 8 Average Rating 7 | 6 7 8 7 On Entrance 5 | . 7 8 8 Avg Prop Armor Cover (%) . | . . . . Naked Turns . | . . . . Heaviest Build 29 | 12 29 17 17 Greatest Support 20 | 20 20 20 20 Greatest Overweight (x) 1 | 1 1 . . Average Overweight (x) . | . . . . Largest Inventory Capacity 15 | 8 15 10 10 Average Capacity 9 | 7 9 10 10 Most Carried 10 | 7 10 10 10 Average Carried 8 | 4 8 10 9 Final Capacity 10 | 8 10 10 10 Final Carried 10 | 7 10 10 9 Class Distribution -------------------- 100% | Mutant Dominant Class ---------------- Mutant | -10/Materials Mutant | -10/Mines Mutant | -10/Subcaves Resources | -11 -10 -10 -10 ----------- Run | Yrd Mat Min Sub Matter Collected 473 | 434 . . 39 Remotely . | . . . . Salvage Created 176 | 176 . . . Parts 15 | 15 . . . Haulers Intercepted . | . . . . Recyclers Shooed . | . . . . Parts Field Recycled . | . . . . Retrieved Matter . | . . . . Parts Self-Destructed . | . . . . Prevented . | . . . . Parts Restored . | . . . . Kills | -11 -10 -10 -10 ------- Run | Yrd Mat Min Sub Combat Hostiles Destroyed . | . . . . Classes Destroyed 3 | 3 . . . Worker 1 | 1 . . . Tunneler 4 | 4 . . . Recycler 1 | 1 . . . Best Kill Streak 2 | 2 . . . Combat Bots Only . | . . . . Max Kills in Single Turn 1 | 1 . . . Gunslinging . | . . . . Exploded . | . . . . Melee . | . . . . Uniques/NPCs Destroyed . | . . . . Combat | -11 -10 -10 -10 -------- Run | Yrd Mat Min Sub Hostile Shots Fired 37 | . 2 . 35 Missed 11 | . 1 . 10 Hits 26 | . 1 . 25 Projectile 26 | . 1 . 25 AOE 3 | . . . 3 Critical Strikes 2 | . . . 2 Damage Taken 759 | . 12 . 747 Core 270 | . . . 270 Absorbed by Shields . | . . . . Core Remaining (%) 100 | 100 . . . Volleys Fired 39 | 33 5 . 1 Largest 2 | 2 2 . 1 Hottest 120 | 40 120 . 20 Shots Fired 74 | 66 7 . 1 Gun 71 | 66 4 . 1 Cannon . | . . . . Launcher . | . . . . Special 3 | . 3 . . Kinetic 71 | 66 4 . 1 Thermal 3 | . 3 . . Explosive . | . . . . Electromagnetic . | . . . . Robot Hit Streak 5 | 5 2 . . Robot Miss Streak 3 | 3 2 . 1 Penetration Max . | . . . . Secondary Targets . | . . . . Shots Hit Robots 36 | 33 3 . . Core Hits 11 | 11 . . . Critical Kills . | . . . . Critical Parts Destroyed . | . . . . Critical Strikes . | . . . . Melee Attacks . | . . . . Impact . | . . . . Slashing . | . . . . Piercing . | . . . . Sneak Attacks . | . . . . Combat Hostiles . | . . . . Follow-up Attacks . | . . . . Damage Inflicted 421 | 364 49 8 . Guns 389 | 364 25 . . Cannons . | . . . . Explosions . | . . . . Melee . | . . . . Ramming 8 | . . 8 . Kinetic 389 | 364 25 . . Thermal 24 | . 24 . . Explosive . | . . . . Electromagnetic . | . . . . Impact . | . . . . Slashing . | . . . . Piercing . | . . . . Highest Corruption . | . . . . Average Corruption . | . . . . Corruption Purged . | . . . . Corruption Blocked . | . . . . Overload Shots . | . . . . Overflow Damage . | . . . . Projectiles . | . . . . Explosions . | . . . . Melee . | . . . . Knockbacks . | . . . . Impact . | . . . . Kinetic . | . . . . Secondary . | . . . . Self-Inflicted Damage . | . . . . Shots . | . . . . Rammed . | . . . . Targets Rammed 1 | . . 1 . Kicked 1 | . . 1 . Crushed . | . . . . Highest Temperature 269 | . 20 . 269 Average Temperature 53 | . 11 . 150 Received Heat Transfer 470 | . 6 . 464 Siege Activations . | . . . . Martial Activations . | . . . . Shielding Activations . | . . . . Robots Disrupted . | . . . . Combat Hostiles . | . . . . Robots Corrupted . | . . . . Combat Hostiles . | . . . . Parts Fried . | . . . . Impact Corruptions . | . . . . Robots Melted . | . . . . Combat Hostiles . | . . . . Parts Melted . | . . . . Heat Transferred 50 | . 50 . . Parts Sabotaged . | . . . . Parts Stolen . | . . . . Parts Stripped . | . . . . Power Chain Reactions . | . . . . Alert | -11 -10 -10 -10 ------- Run | Yrd Mat Min Sub Maximum Alert Level . | . . . . Low Security (%) 100 | 100 100 100 . Level 1 . | . . . . Level 2 . | . . . . Level 3 . | . . . . Level 4 . | . . . . Level 5 . | . . . . High Security . | . . . . Max Security . | . . . . Peak Influence 15 | 10 15 . . Initial . | . . . . Average . | 1 . . . Influence Increases 45 | 30 15 . . Destroy 0b10 Robot/NC 30 | 30 . . . Disable Machine 15 | . 15 . . Influence Decreases 45 | 30 15 . . Time Decay 45 | 30 15 . . Squads Dispatched 1 | . 1 . . Investigation . | . . . . Extermination . | . . . . Reinforcement 1 | . 1 . . Assault . | . . . . Garrison . | . . . . Intercept . | . . . . Searches Triggered . | . . . . Construction Impeded . | . . . . Haulers Reinforced . | . . . . Active Scanning Responses . | . . . . Cargo Convoy Interrupts . | . . . . Stealth | -11 -10 -10 -10 --------- Run | Yrd Mat Min Sub Distress Signals . | . . . . Communications Jammed . | . . . . Distress Signals . | . . . . Times Spotted 6 | . 2 . 4 Peak Tracking Total 2 | . 1 . 2 Tactical Retreats . | . . . . Traps | -11 -10 -10 -10 ------- Run | Yrd Mat Min Sub Traps Triggered . | . . . . Indirectly . | . . . . Trap Hack Attempts . | . . . . Triggered . | . . . . Disarmed . | . . . . Reprogrammed . | . . . . Reused . | . . . . Traps Extracted . | . . . . Installed . | . . . . Triggered . | . . . . Machines | -11 -10 -10 -10 ---------- Run | Yrd Mat Min Sub Machines Disabled 1 | . 1 . . Max in Single Turn 1 | . 1 . . Machines Repaired . | . . . . Machines Dismantled . | . . . . Machines Sabotaged . | . . . . Overloaded Fab Kills . | . . . . Hacking | -11 -10 -10 -10 --------- Run | Yrd Mat Min Sub Machines Accessed 1 | . 1 . . Terminals 1 | . 1 . . Fabricators . | . . . . Repair Stations . | . . . . Recycling Units . | . . . . Scanalyzers . | . . . . Garrison Access . | . . . . Total Hacks 2 | . 2 . . Successful . | . . . . Failed 2 | . 2 . . Catastrophic . | . . . . Database Lockouts . | . . . . Manual 2 | . 2 . . Terminals 2 | . 2 . . Fabricators . | . . . . Repair Stations . | . . . . Recycling Units . | . . . . Scanalyzers . | . . . . Garrison Access . | . . . . Terminal Hacks . | . . . . Fabricator Hacks . | . . . . Repair Station Hacks . | . . . . Recycling Unit Hacks . | . . . . Scanalyzer . | . . . . Garrison Access Hacks . | . . . . Unauthorized Hacks . | . . . . Terminals . | . . . . Fabricators . | . . . . Repair Stations . | . . . . Recycling Units . | . . . . Scanalyzers . | . . . . Garrison Access . | . . . . Data Cores Recovered . | . . . . Used . | . . . . Hacking Detections 1 | . 1 . . Full Trace Events . | . . . . Feedback Events . | . . . . Feedback Blocked . | . . . . Robot Schematics Acquired . | . . . . Robots Built . | . . . . Authchips . | . . . . Time . | . . . . Total Robot Build Rating . | . . . . Part Schematics Acquired . | . . . . Parts Built . | . . . . Authchips . | . . . . Time . | . . . . Total Part Build Rating . | . . . . Part Studies Acquired . | . . . . Parts Repaired . | . . . . Time . | . . . . Parts Recycled . | . . . . Recycled Matter . | . . . . Retrieved Matter . | . . . . Retrieved Components . | . . . . Parts Scanalyzed . | . . . . Part Schematics Acquired . | . . . . Parts Damaged . | . . . . Bothacking | -11 -10 -10 -10 ------------ Run | Yrd Mat Min Sub Used RIF Installer . | . . . . Robots Hacked . | . . . . Non-combat . | . . . . Combat . | . . . . Robot Hacks Applied . | . . . . Relay Couplers Released . | . . . . Fabnet Peak Effective % . | . . . . Robots Rewired . | . . . . Allies Hacked . | . . . . Hacks Repelled . | . . . . Allies | -11 -10 -10 -10 -------- Run | Yrd Mat Min Sub Total Allies . | . . . . Largest Group . | . . . . Highest-Rated Group . | . . . . Highest-Rated Ally . | . . . . Total Orders . | . . . . Ally Attacks . | . . . . Total Damage . | . . . . Kills . | . . . . Allies Corrupted . | . . . . Allies Melted . | . . . . Intel | -11 -10 -10 -10 ------- Run | Yrd Mat Min Sub Active Infowar (turns) 784 | 154 224 128 278 Sensors 480 | . 74 128 278 Terrain 5 | 5 . . . Seismic 299 | 149 150 . . Robot Analysis Total . | . . . . Derelict Logs Recovered 1 | . . . 1 Drone Launches . | . . . . Drone Recoveries . | . . . . Exploration | -11 -10 -10 -10 ------------- Run | Yrd Mat Min Sub Turns Passed 895 | 250 224 128 293 Spaces Moved 573 | 115 159 106 193 Core 4 | 4 . . . Treads . | . . . . Legs 569 | 111 159 106 193 Wheels . | . . . . Hover . | . . . . Flight . | . . . . Fastest Speed 50 | 50 120 120 120 Average Speed 120 | 121 120 120 120 Slowest Speed 190 | 190 190 120 120 Overloaded Moves . | . . . . Propulsion Burnouts . | . . . . Robots Hopped . | . . . . Potential Cave-ins . | . . . . Cave-ins Triggered . | . . . . Exploration Rate (%) 18 | 7 31 21 16 Regions Visited 3 Branch Regions 2 Pre-discovered Areas . | . . . . Known Exits Taken . | . . . . Unknown Exits Taken 3 | 1 1 1 . Scrap Searched . | . . . . Spaces Dug . | . . . . Terrain Destroyed . | . . . . Melee . | . . . . Projectile . | . . . . AOE . | . . . . Terrain Rammed . | . . . . Walls Destroyed . | . . . . Machines Disabled . | . . . . Actions | -11 -10 -10 -10 --------- Run | Yrd Mat Min Sub Total 700 | 162 179 106 253 Wait 58 | . . . 58 Move 570 | 114 158 105 193 Hop . | . . . . Pick Up 13 | 7 6 . . Fast Attach 8 | 7 1 . . Attach 1 | . . . 1 Detach . | . . . . Swap 5 | 1 4 . . Drop 5 | . 5 . . Fire 39 | 33 5 . 1 Melee . | . . . . Ram . | . . . . Kick 1 | . . 1 . Crush . | . . . . Escape Stasis . | . . . . Rewire . | . . . . Trap . | . . . . Miscellaneous . | . . . . Route ------- -11/Scrapyard -10/Materials (discovered 2 exits: [*Min x2]) -10/Mines -10/Subcaves History --------- Turn | Location | Event 10 | -11/Scrapyard | Discovered new exit (range 16) 251 | -11/Scrapyard | Entered Materials 317 | -10/Materials | Build established: Mutant 382 | -10/Materials | Discovered new exit (range 15) 384 | -10/Materials | Discovered new exit (range 12) 475 | -10/Materials | Entered Mines 557 | -10/Mines | Discovered new exit (range 9) 603 | -10/Mines | Entered Subcaves 603 | -10/Subcaves | Learned 2 Materials zone layouts 889 | -10/Subcaves | Core integrity fell below 50% 894 | -10/Subcaves | Core integrity fell below 20% 896 | -10/Subcaves | Destroyed by NO-ZD4(R) with Subdweller Beam Cannon Last Messages --------------- GOAL=ESCAPE Acquired derelict log, extracted data. Data stored: Materials zone layouts (x2). Lgt. Ion Engine destroyed. KD-Z28(R) destroyed. Subatomizers dissect the Sub. Optics. Subatomizers dissect the Sub. Monowheel. Acquired 39 matter. Subatomizers dissect the Sub. Monowheel. Subatomizers dissect the Disposable Heat Sink. Subatomizers dissect the Disposable Heat Sink, destroying it. Subatomizers dissect the Sub. Optics. Assault Rifle destroyed. Critical hit (Meltdown: +290). Mining Laser destroyed. Aluminum Leg destroyed. Sensor Array destroyed. Lgt. Ion Engine destroyed. Map ----- +----------------------------------------------------+ | ?????????????????????????????????????????????????? | | ?????????????????????????????????????????????????? | | ?????????????????????????????????????????????????? | | ?????????????????????????????????????????????????? | | ?????????????????????????????????????????????????? | | ?????????????????????????????????????????????????? | | ?????????????????????????????????????????????????? | | ?????????????????????????????????????????????????? | | ?????????????????????????????????????????????????? | | ?????????????????????????????????????????????????? | | ?????????????????????????????????????????????????? | | ?????????????????????????????????????????????????? | | ?????????????????????????????????????????????????? | | ?????????#?#?#???????????????????????????????????? | | ????????? ? ???????????????????????????????????? | | ????????? " "#??????????????????????????????????? | | ??????????& ##??????####??????????????????????? | | ??????????" " ##????## #??????????????????????? | | ??????????? # ???? #??????????????????????? | | ???????????? ?????? #??????????????????????? | | ???????????? ?????? #??????????????????????? | | ????????????? #??????#RR#??????????????????????? | | ??###???????## ##?????# ##?????????????????????? | | ## ##??????# #?????# #?????????????????????? | | #??????# ####???# #?????????????????????? | | #??????## ## ##??# @#??????????????????????? | | #???????# #??# ##?????????????????????? | | #???????# ##?# #?????????????????????? | | ## ##?###### ### ##????????????????????? | | # # ### ######???????????????? | | ## #???????????????? | | ##### ## ## #??????????????? | | ###???# ## #?# #?????????????? | | ##???## ##? #?????????????? | | # ##?### #?# ## ##?????????????? | | ##"### #### ###?? #??#??????????????? | | ?## #?#####???? #?????????????????? | | ??# ## ##??# ? #?????????????????? | | ??##### ## ?????????????????? | | ####??## #?????????????????? | | #???# #??????????????????? | | ##??# #### ##??????????????????? | | ##?## #??# ####???????????????????? | | #??# #?# ##?????????????????????? | | #?## ## #?????????????????????? | | ### #?????????????????????? | | #?????????????????????? | | ## ## #?????????????????????? | | # ### ## #????????????????????? | | " ##?# #???? #???????????????????? | +----------------------------------------------------+ Best States ------------- Heat Dissipation 25 Energy Generation 10 Energy Capacity 125 Matter Stores 300 Matter Capacity 300 Sight Range 16 Robot Scan Range 14 Terrain Scan Range 16 Terrain Scan Density 10 Evasion (%) 55 Item Schematics ----------------- None Robot Schematics ------------------ None Fabricated ------------ Nothing Repaired ---------- Nothing Studied --------- None Alien Tech Used ----------------- None Achievements -------------- None Challenges ------------ None Game ------ Seed ExperimentalMyomerArmor Manual? 0 Play Time 00:11:34 Cumulative 5.9 hours Start 2025.12.25 @ 13:08:01 End 2025.12.26 @ 12:46:13 Sessions 2 Manual Loads 0 Difficulty Rogue Special Mode None Game No. 12 Rogue 12 Adventurer 0 Explorer 0 Win Type - Total 0 Types 0/0/0/0/0/0/0/0/0/0 Lore% 2 Gallery% 10 Achievement% 9 Wizard Run 0 Options --------- Layout 1 ASCII 0 Keyboard 0 Movement Arrows Keybinds 0 Fullscreen 2 Font 24/Smallcaps Map View 50x35 Zoom Use 0% Tactical HUD 0 Map Filters NONE Filters NONE Steam 1 RUN: 20662ac6-cc71-43bd-bd18-81d319db6eae